Workbook

Sheet Запуск
A1: Игроков: | B1: 27 | H1: Введите ожидаемое количество игроков. Вероятности будут посчитаны для любого количества игроков, но списки распределения по командам будут сформированы только для 16-30 игроков. Можно менять количество карт, выдаваемое каждому игроку на цикл, и число дополнительных карт, которые получает начальник отдела при успешном выполнении задания на производственный такт. После изменения любых данных нажмите "Пересчитать". На момент создания этого файла, последний успешный прогон игры был с значениями 20, 5 и 2.
A2: Число карт каждому игроку на цикл: | B2: 5
A3: Число дополнительных карт на команду за один цикл: | B3: 2
A6: Рекомендации: | D6: Сколько нужно колод | E6: адекватный минимум | F6: комфортный максимум | H6: Здесь не нужно ничего менять, эти значения будут посчитаны автоматически. Количество колод для адекватного минимума подразумевает, что ведущие игры между 1 и 2 циклами будут пересобирать колоды для игроков на 3 цикл. Колоды на 1 и 2 цикл рекомендуется собрать до игры. Количество колод для комфортного максимума даст возможность собрать все колоды для игроков на все циклы до игры. Целесообразность того или иного варианта зависит от количества ведущих и доступного бюджета.
A7: Число команд: | B7: 6 | D7: по 36 карт | E7: 9 | F7: 14
D8: по 54 карты | E8: 6 | F8: 9
A10: Вероятности:
A11: При равном распределении карт… | B11: Шанс успеха каждой команды | C11: Шанс успеха для всего цикла | H11: При равном распределении карт - если игроки пытаются выполнить и семейные, и производственные цели примерно в равных пропорциях. При максимальном вкладе в производство - если игроки все доступные карты вкладывают в производственные цели. Шанс успеха каждой команды - шанс, что в каждой команде в отдельности не будет вытянуто джокера/черной карты. Шанс успеха для всего цикла - шанс, что по итогам результатов всех команд, будет выполнено условие успешного запуска. Для Цикла 1 - не более 3 провалов среди команд. Для Цикла 2 - не более 2 провалов среди команд. Для Цикла 3 - не более 1 провала среди команд. При создании игры мы считали приемлемыми шансами успехов для циклов: Цикл 1 - 68%, Цикл 2 - 50%, Цикл 3 - 33%. При желании, вы можете приблизиться к этим цифрам или скорректировать их по своему усмотрению, пересчитав шансы при большем количестве выдаваемых карт (изменить исходные данные + кнопка "Пересчитать") или выбрав другие значения проверок (кнопка "Хочу сам определять шансы игроков").
A12: Шанс успеха в Цикле 1 (тянется 3 карты) | B12: 0.7692307692 | C12: =B12^($B$7-3) -> 0.4551661356
A13: Шанс успеха в Цикле 2 (тянется 4 карты) | B13: 0.6923076923 | C13: =B13^($B$7-2) -> 0.2297188474
A14: Шанс успеха в Цикле 3 (тянется 5 карт) | B14: 0.6153846154 | C14: =B14^($B$7-1) -> 0.08825375108
A16: При максимальном вкладе в производство… | B16: Шанс успеха каждой команды | C16: Шанс успеха для всего цикла
A17: Шанс успеха в Цикле 1 (тянется 3 карты) | B17: 0.88 | C17: =B17^($B$7-3) -> 0.681472
A18: Шанс успеха в Цикле 2 (тянется 4 карты) | B18: 0.84 | C18: =B18^($B$7-2) -> 0.49787136
A19: Шанс успеха в Цикле 3 (тянется 5 карт) | B19: 0.8 | C19: =B19^($B$7-1) -> 0.32768
A25: При равном распределении карт | B25: Количество допустимых ошибок | C25: 3 | D25: 2 | E25: 1 | H25: Желтым отмечены ячейки с количеством допустимых ошибок отделов в каждом цикле. При создании игры мы считали наиболее удачным распределение 3-2-1 - оно предоставляло существенный вызов и показывало постоянное нарастание рисков. Однако с целью повышения или снижения вероятностей успеха команд, вы можете самостоятельно задать эти числа - шансы успеха для каждого количества вытягиваемых карт и для каждого цикла пересчитаются автоматически. Если это меню пугает больше, чем приносит пользы - нажмите "Скрыть дополнительные расчеты".
A26: При проверке результата Цикла… | B26: Шанс успеха каждой команды | C26: Шанс успеха для Цикла 1 | D26: Шанс успеха для Цикла 2 | E26: Шанс успеха для Цикла 3
A27: Тянется 1 карта | B27: 0.9230769231 | C27: =$B27^($B$7-C$25) -> 0.7865270824 | D27: =$B27^($B$7-D$25) -> 0.7260249991 | E27: 0.6701769223
A28: Тянется 2 карты | B28: 0.8461538462 | C28: =$B28^($B$7-C$25) -> 0.6058261265 | D28: 0.5126221071 | E28: 0.4337571675
A29: Тянется 3 карты | B29: 0.7692307692 | C29: 0.4551661356 | D29: 0.3501277966 | E29: 0.2693290743
A30: Тянется 4 карты | B30: 0.6923076923 | C30: 0.3318161129 | D30: 0.2297188474 | E30: 0.1590361251
A31: Тянется 5 карт | B31: 0.6153846154 | C31: 0.2330450614 | D31: 0.1434123455 | E31: 0.08825375108
A32: Тянется 6 карт | B32: 0.5384615385 | C32: 0.1561219845 | D32: 0.08406568397 | E32: 0.04526613752
A33: Тянется 7 карт | B33: 0.4615384615 | C33: 0.0983158853 | D33: 0.04537656245 | E33: 0.02094302882
A35: При максимальном вкладе в производство
A36: При проверке результата Цикла… | B36: Шанс успеха каждой команды | C36: Шанс успеха для Цикла 1 | D36: Шанс успеха для Цикла 2 | E36: Шанс успеха для Цикла 3
A37: Тянется 1 карта | B37: 0.96 | C37: =$B37^($B$7-C$25) -> 0.884736 | D37: 0.84934656 | E37: 0.8153726976
A38: Тянется 2 карты | B38: 0.92 | C38: 0.778688 | D38: 0.71639296 | E38: 0.6590815232
A39: Тянется 3 карты | B39: 0.88 | C39: 0.681472 | D39: 0.59969536 | E39: 0.5277319168
A40: Тянется 4 карты | B40: 0.84 | C40: 0.592704 | D40: 0.49787136 | E40: 0.4182119424
A41: Тянется 5 карт | B41: 0.8 | C41: 0.512 | D41: 0.4096 | E41: 0.32768
A42: Тянется 6 карт | B42: 0.76 | C42: 0.438976 | D42: 0.33362176 | E42: 0.2535525376
A43: Тянется 7 карт | B43: 0.72 | C43: 0.373248 | D43: 0.26873856 | E43: 0.1934917632
A52: Для печати | H52: Список расределения игроков по семьям, отделам и клубам для печати
A54: Макаровы | B54: ПРКС | C54: Лыжники
A55: Макаровы | B55: КРКА | C55: Филателисты
A56: Макаровы | B56: СУН | C56: Радиолюбители
A57: Макаровы | B57: ТС | C57: Самодеятельная песня
A58: Васильевы | B58: ЭСЭ | C58: Самодеятельная песня
A59: Васильевы | B59: МИЖ | C59: Рыболовы
A60: Васильевы | B60: ПРКС | C60: Филателисты
A61: Васильевы | B61: КРКА | C61: Радиолюбители
A62: Кузнецовы | B62: СУН | C62: Радиолюбители
A63: Кузнецовы | B63: ТС | C63: Самодеятельная песня
A64: Кузнецовы | B64: ЭСЭ | C64: Рыболовы
A65: Кузнецовы | B65: МИЖ | C65: Садоводы
A66: Ивановы | B66: ПРКС | C66: Самодеятельная песня
A67: Ивановы | B67: КРКА | C67: Рыболовы
A68: Ивановы | B68: СУН | C68: Садоводы
A69: Ивановы | B69: ТС | C69: Лыжники
A70: Ивановы | B70: ЭСЭ | C70: Филателисты
A71: Черновы | B71: МИЖ | C71: Радиолюбители
A72: Черновы | B72: ПРКС | C72: Рыболовы
A73: Черновы | B73: КРКА | C73: Садоводы
A74: Черновы | B74: СУН | C74: Лыжники
A75: Черновы | B75: ТС | C75: Филателисты
A76: Сидоровы | B76: ЭСЭ | C76: Радиолюбители
A77: Сидоровы | B77: МИЖ | C77: Самодеятельная песня
A78: Сидоровы | B78: ПРКС | C78: Садоводы
A79: Сидоровы | B79: КРКА | C79: Лыжники
A80: Сидоровы | B80: СУН | C80: Филателисты

Sheet Расчеты1 (hidden)
A1: 27 | B1: игроков | C1: 5 | D1: карт у каждого игрока | G1: 3 | H1: цикла | J1: 6 | K1: проблем
C2: 2 | D2: бонусных карт начальнику | J2: 6 | K2: отделов
B4: Цикл 1 | C4: 1 | E4: Цикл 2 | F4: 1 | H4: Цикл 3 | I4: 1 | L4: всего карт на цикл | M4: =A1*C1+C2*J2 -> 147 | O4: 0 акт | P4: I акт | Q4: II акт
B5: поражение | C5: победа | E5: поражение | F5: победа | H5: поражение | I5: победа | L5: усредненно на проблему | M5: =M4/J1 -> 24.5 | N5: =INT(M5) -> 24 | O5: =VLOOKUP(N5,A6:I141,3,0) -> 0.96 | P5: =VLOOKUP(N5,A6:I141,6,0) -> 0.96 | Q5: =VLOOKUP(N5,A6:I141,9,0) -> 0.96
A6: 0 | B6: =1-C6 -> 1 | C6: =$A6/($A6+$C$4) -> 0 | E6: =1-F6 -> 1 | F6: =$A6/($A6+$F$4) -> 0 | H6: =1-I6 -> 1 | I6: =$A6/($A6+$I$4) -> 0 | O6: разница | P6: =O5-P5 -> 0 | Q6: =P5-Q5 -> 0
A7: =A6+1 -> 1 | B7: =1-C7 -> 0.5 | C7: 0.5 | E7: =1-F7 -> 0.5 | F7: =$A7/($A7+$F$4) -> 0.5 | H7: =1-I7 -> 0.5 | I7: =$A7/($A7+$I$4) -> 0.5
A8: =A7+1 -> 2 | B8: 0.3333333333 | C8: 0.6666666667 | E8: 0.3333333333 | F8: 0.6666666667 | H8: 0.3333333333 | I8: 0.6666666667 | L8: снимаем 1 | O8: =VLOOKUP(N5,A6:I141,3,0) -> 0.96
A9: =A8+1 -> 3 | B9: 0.25 | C9: 0.75 | E9: 0.25 | F9: 0.75 | H9: 0.25 | I9: 0.75 | L9: снимаем 2 | O9: =VLOOKUP(N5,A6:I141,3,0)*VLOOKUP(N5-1,A6:I141,3,0) -> 0.92
A10: 4 | B10: 0.2 | C10: 0.8 | E10: 0.2 | F10: 0.8 | H10: 0.2 | I10: 0.8 | L10: снимаем 3 | O10: =VLOOKUP(N5,A6:I141,3,0)*VLOOKUP(N5-1,A6:I141,3,0)*VLOOKUP(N5-2,A6:I141,3,0) -> 0.88
A11: 5 | B11: 0.1666666667 | C11: 0.8333333333 | E11: 0.1666666667 | F11: 0.8333333333 | H11: 0.1666666667 | I11: 0.8333333333 | L11: снимаем 4 | O11: =VLOOKUP(N5,A6:I141,3,0)*VLOOKUP(N5-1,A6:I141,3,0)*VLOOKUP(N5-2,A6:I141,3,0)*VLOOKUP(N5-3,A6:I141,3,0) -> 0.84
A12: 6 | B12: 0.1428571429 | C12: 0.8571428571 | E12: 0.1428571429 | F12: 0.8571428571 | H12: 0.1428571429 | I12: 0.8571428571 | L12: снимаем 5 | O12: =VLOOKUP(N5,A6:I141,3,0)*VLOOKUP(N5-1,A6:I141,3,0)*VLOOKUP(N5-2,A6:I141,3,0)*VLOOKUP(N5-3,A6:I141,3,0)*VLOOKUP(N5-4,A6:I141,3,0) -> 0.8
A13: 7 | B13: 0.125 | C13: 0.875 | E13: 0.125 | F13: 0.875 | H13: 0.125 | I13: 0.875 | L13: снимаем 6 | O13: =VLOOKUP(N5,A6:I141,3,0)*VLOOKUP(N5-1,A6:I141,3,0)*VLOOKUP(N5-2,A6:I141,3,0)*VLOOKUP(N5-3,A6:I141,3,0)*VLOOKUP(N5-4,A6:I141,3,0)*VLOOKUP(N5-5,A6:I141,3,0) -> 0.76
A14: 8 | B14: 0.1111111111 | C14: 0.8888888889 | E14: 0.1111111111 | F14: 0.8888888889 | H14: 0.1111111111 | I14: 0.8888888889 | L14: снимаем 7 | O14: =VLOOKUP(N5,A6:I141,3,0)*VLOOKUP(N5-1,A6:I141,3,0)*VLOOKUP(N5-2,A6:I141,3,0)*VLOOKUP(N5-3,A6:I141,3,0)*VLOOKUP(N5-4,A6:I141,3,0)*VLOOKUP(N5-5,A6:I141,3,0)*VLOOKUP(N5-6,A6:I141,3,0) -> 0.72
A15: 9 | B15: 0.1 | C15: 0.9 | E15: 0.1 | F15: 0.9 | H15: 0.1 | I15: 0.9
A16: 10 | B16: 0.09090909091 | C16: 0.9090909091 | E16: 0.09090909091 | F16: 0.9090909091 | H16: 0.09090909091 | I16: 0.9090909091
A17: =A16+1 -> 11 | B17: 0.08333333333 | C17: =$A17/($A17+$C$4) -> 0.9166666667 | E17: 0.08333333333 | F17: 0.9166666667 | H17: 0.08333333333 | I17: 0.9166666667
A18: 12 | B18: 0.07692307692 | C18: 0.9230769231 | E18: 0.07692307692 | F18: 0.9230769231 | H18: 0.07692307692 | I18: 0.9230769231 | N18: 5 человек | O18: 5 карт 2 проблемы | P18: 5 карт 1 проблема | Q18: 4 карты 2 проблемы | R18: 4 карты 1 проблема
A19: 13 | B19: 0.07142857143 | C19: 0.9285714286 | E19: 0.07142857143 | F19: 0.9285714286 | H19: 0.07142857143 | I19: 0.9285714286 | N19: снимаем 3 | O19: 0.7692307692 | P19: 0.8846153846 | Q19: 0.7272727273 | R19: 0.8571428571
A20: 14 | B20: 0.06666666667 | C20: 0.9333333333 | E20: 0.06666666667 | F20: 0.9333333333 | H20: 0.06666666667 | I20: 0.9333333333 | N20: снимаем 5 | O20: 0.6153846154 | P20: 0.8076923077 | Q20: 0.5454545455 | R20: 0.7619047619
A21: 15 | B21: 0.0625 | C21: 0.9375 | E21: 0.0625 | F21: 0.9375 | H21: 0.0625 | I21: 0.9375 | N21: снимаем 7 | O21: 0.4615384615 | P21: 0.7307692308 | Q21: 0.3636363636 | R21: 0.6666666667
A22: 16 | B22: 0.05882352941 | C22: 0.9411764706 | E22: 0.05882352941 | F22: 0.9411764706 | H22: 0.05882352941 | I22: 0.9411764706
A23: 17 | B23: 0.05555555556 | C23: 0.9444444444 | E23: 0.05555555556 | F23: 0.9444444444 | H23: 0.05555555556 | I23: 0.9444444444 | N23: 4 человека | O23: 5 карт 2 проблемы | P23: 5 карт 1 проблема | Q23: 4 карты 2 проблемы | R23: 4 карты 1 проблема
A24: 18 | B24: 0.05263157895 | C24: 0.9473684211 | E24: 0.05263157895 | F24: 0.9473684211 | H24: 0.05263157895 | I24: 0.9473684211 | N24: снимаем 3 | O24: 0.7272727273 | P24: 0.8571428571 | Q24: 0.6666666667 | R24: 0.8235294118
A25: 19 | B25: 0.05 | C25: 0.95 | E25: 0.05 | F25: 0.95 | H25: 0.05 | I25: 0.95 | N25: снимаем 5 | O25: 0.5454545455 | P25: 0.7619047619 | Q25: 0.4444444444 | R25: 0.7058823529
A26: 20 | B26: 0.04761904762 | C26: 0.9523809524 | E26: 0.04761904762 | F26: 0.9523809524 | H26: 0.04761904762 | I26: 0.9523809524 | N26: снимаем 7 | O26: 0.3636363636 | P26: 0.6666666667 | Q26: 0.2222222222 | R26: 0.5882352941
A27: 21 | B27: 0.04545454545 | C27: 0.9545454545 | E27: 0.04545454545 | F27: 0.9545454545 | H27: 0.04545454545 | I27: 0.9545454545
A28: 22 | B28: 0.04347826087 | C28: 0.9565217391 | E28: 0.04347826087 | F28: 0.9565217391 | H28: 0.04347826087 | I28: 0.9565217391 | N28: 27 человек | O28: 3 карты 12 проблем | P28: 5 карт 12 проблем | Q28: 4 карты 12 проблем
A29: 23 | B29: 0.04166666667 | C29: 0.9583333333 | E29: 0.04166666667 | F29: 0.9583333333 | H29: 0.04166666667 | I29: 0.9583333333 | N29: снимаем 3 | O29: 0.5714285714 | P29: 0.75 | Q29: 0.7
A30: 24 | B30: 0.04 | C30: 0.96 | E30: 0.04 | F30: 0.96 | H30: 0.04 | I30: 0.96 | N30: снимаем 5 | O30: 0.2857142857 | P30: 0.5833333333 | Q30: 0.5
A31: 25 | B31: 0.03846153846 | C31: 0.9615384615 | E31: 0.03846153846 | F31: 0.9615384615 | H31: 0.03846153846 | I31: 0.9615384615 | N31: снимаем 7 | O31: 0 | P31: 0.4166666667 | Q31: 0.3
A32: =A31+1 -> 26 | B32: 0.03703703704 | C32: 0.962962963 | E32: 0.03703703704 | F32: 0.962962963 | H32: 0.03703703704 | I32: 0.962962963
A33: 27 | B33: 0.03571428571 | C33: 0.9642857143 | E33: 0.03571428571 | F33: 0.9642857143 | H33: 0.03571428571 | I33: 0.9642857143
A34: 28 | B34: 0.03448275862 | C34: 0.9655172414 | E34: 0.03448275862 | F34: 0.9655172414 | H34: 0.03448275862 | I34: 0.9655172414
A35: 29 | B35: 0.03333333333 | C35: 0.9666666667 | E35: 0.03333333333 | F35: 0.9666666667 | H35: 0.03333333333 | I35: 0.9666666667
A36: 30 | B36: 0.03225806452 | C36: 0.9677419355 | E36: 0.03225806452 | F36: 0.9677419355 | H36: 0.03225806452 | I36: 0.9677419355
A37: 31 | B37: 0.03125 | C37: 0.96875 | E37: 0.03125 | F37: 0.96875 | H37: 0.03125 | I37: 0.96875
A38: 32 | B38: 0.0303030303 | C38: 0.9696969697 | E38: 0.0303030303 | F38: 0.9696969697 | H38: 0.0303030303 | I38: 0.9696969697
A39: 33 | B39: 0.02941176471 | C39: 0.9705882353 | E39: 0.02941176471 | F39: 0.9705882353 | H39: 0.02941176471 | I39: 0.9705882353
A40: 34 | B40: 0.02857142857 | C40: 0.9714285714 | E40: 0.02857142857 | F40: 0.9714285714 | H40: 0.02857142857 | I40: 0.9714285714
A41: 35 | B41: 0.02777777778 | C41: 0.9722222222 | E41: 0.02777777778 | F41: 0.9722222222 | H41: 0.02777777778 | I41: 0.9722222222
A42: 36 | B42: 0.02702702703 | C42: 0.972972973 | E42: 0.02702702703 | F42: 0.972972973 | H42: 0.02702702703 | I42: 0.972972973
A43: 37 | B43: 0.02631578947 | C43: 0.9736842105 | E43: 0.02631578947 | F43: 0.9736842105 | H43: 0.02631578947 | I43: 0.9736842105
A44: 38 | B44: 0.02564102564 | C44: 0.9743589744 | E44: 0.02564102564 | F44: 0.9743589744 | H44: 0.02564102564 | I44: 0.9743589744
A45: 39 | B45: 0.025 | C45: 0.975 | E45: 0.025 | F45: 0.975 | H45: 0.025 | I45: 0.975
A46: 40 | B46: 0.0243902439 | C46: 0.9756097561 | E46: 0.0243902439 | F46: 0.9756097561 | H46: 0.0243902439 | I46: 0.9756097561
A47: 41 | B47: 0.02380952381 | C47: 0.9761904762 | E47: 0.02380952381 | F47: 0.9761904762 | H47: 0.02380952381 | I47: 0.9761904762
A48: 42 | B48: 0.02325581395 | C48: 0.976744186 | E48: 0.02325581395 | F48: 0.976744186 | H48: 0.02325581395 | I48: 0.976744186
A49: 43 | B49: 0.02272727273 | C49: 0.9772727273 | E49: 0.02272727273 | F49: 0.9772727273 | H49: 0.02272727273 | I49: 0.9772727273
A50: 44 | B50: 0.02222222222 | C50: 0.9777777778 | E50: 0.02222222222 | F50: 0.9777777778 | H50: 0.02222222222 | I50: 0.9777777778
A51: 45 | B51: 0.02173913043 | C51: 0.9782608696 | E51: 0.02173913043 | F51: 0.9782608696 | H51: 0.02173913043 | I51: 0.9782608696
A52: 46 | B52: 0.02127659574 | C52: 0.9787234043 | E52: 0.02127659574 | F52: 0.9787234043 | H52: 0.02127659574 | I52: 0.9787234043
A53: 47 | B53: 0.02083333333 | C53: 0.9791666667 | E53: 0.02083333333 | F53: 0.9791666667 | H53: 0.02083333333 | I53: 0.9791666667
A54: 48 | B54: 0.02040816327 | C54: 0.9795918367 | E54: 0.02040816327 | F54: 0.9795918367 | H54: 0.02040816327 | I54: 0.9795918367
A55: 49 | B55: 0.02 | C55: 0.98 | E55: 0.02 | F55: 0.98 | H55: 0.02 | I55: 0.98
A56: 50 | B56: 0.01960784314 | C56: 0.9803921569 | E56: 0.01960784314 | F56: 0.9803921569 | H56: 0.01960784314 | I56: 0.9803921569
A57: 51 | B57: 0.01923076923 | C57: 0.9807692308 | E57: 0.01923076923 | F57: 0.9807692308 | H57: 0.01923076923 | I57: 0.9807692308
A58: 52 | B58: 0.01886792453 | C58: 0.9811320755 | E58: 0.01886792453 | F58: 0.9811320755 | H58: 0.01886792453 | I58: 0.9811320755
A59: 53 | B59: 0.01851851852 | C59: 0.9814814815 | E59: 0.01851851852 | F59: 0.9814814815 | H59: 0.01851851852 | I59: 0.9814814815
A60: 54 | B60: 0.01818181818 | C60: 0.9818181818 | E60: 0.01818181818 | F60: 0.9818181818 | H60: 0.01818181818 | I60: 0.9818181818
A61: 55 | B61: 0.01785714286 | C61: 0.9821428571 | E61: 0.01785714286 | F61: 0.9821428571 | H61: 0.01785714286 | I61: 0.9821428571
A62: 56 | B62: 0.01754385965 | C62: 0.9824561404 | E62: 0.01754385965 | F62: 0.9824561404 | H62: 0.01754385965 | I62: 0.9824561404
A63: 57 | B63: 0.01724137931 | C63: 0.9827586207 | E63: 0.01724137931 | F63: 0.9827586207 | H63: 0.01724137931 | I63: 0.9827586207
A64: 58 | B64: 0.01694915254 | C64: 0.9830508475 | E64: 0.01694915254 | F64: 0.9830508475 | H64: 0.01694915254 | I64: 0.9830508475
A65: 59 | B65: 0.01666666667 | C65: 0.9833333333 | E65: 0.01666666667 | F65: 0.9833333333 | H65: 0.01666666667 | I65: 0.9833333333
A66: 60 | B66: 0.01639344262 | C66: 0.9836065574 | E66: 0.01639344262 | F66: 0.9836065574 | H66: 0.01639344262 | I66: 0.9836065574
A67: 61 | B67: 0.01612903226 | C67: 0.9838709677 | E67: 0.01612903226 | F67: 0.9838709677 | H67: 0.01612903226 | I67: 0.9838709677
A68: 62 | B68: 0.01587301587 | C68: 0.9841269841 | E68: 0.01587301587 | F68: 0.9841269841 | H68: 0.01587301587 | I68: 0.9841269841
A69: 63 | B69: 0.015625 | C69: 0.984375 | E69: 0.015625 | F69: 0.984375 | H69: 0.015625 | I69: 0.984375
A70: 64 | B70: 0.01538461538 | C70: 0.9846153846 | E70: 0.01538461538 | F70: 0.9846153846 | H70: 0.01538461538 | I70: 0.9846153846
A71: 65 | B71: =1-C71 -> 0.01515151515 | C71: 0.9848484848 | E71: =1-F71 -> 0.01515151515 | F71: =$A71/($A71+$F$4) -> 0.9848484848 | H71: =1-I71 -> 0.01515151515 | I71: =$A71/($A71+$I$4) -> 0.9848484848
A72: 66 | B72: 0.01492537313 | C72: 0.9850746269 | E72: 0.01492537313 | F72: 0.9850746269 | H72: 0.01492537313 | I72: 0.9850746269
A73: 67 | B73: 0.01470588235 | C73: 0.9852941176 | E73: 0.01470588235 | F73: 0.9852941176 | H73: 0.01470588235 | I73: 0.9852941176
A74: 68 | B74: 0.01449275362 | C74: 0.9855072464 | E74: 0.01449275362 | F74: 0.9855072464 | H74: 0.01449275362 | I74: 0.9855072464
A75: 69 | B75: 0.01428571429 | C75: 0.9857142857 | E75: 0.01428571429 | F75: 0.9857142857 | H75: 0.01428571429 | I75: 0.9857142857
A76: 70 | B76: 0.01408450704 | C76: 0.985915493 | E76: 0.01408450704 | F76: 0.985915493 | H76: 0.01408450704 | I76: 0.985915493
A77: 71 | B77: 0.01388888889 | C77: 0.9861111111 | E77: 0.01388888889 | F77: 0.9861111111 | H77: 0.01388888889 | I77: 0.9861111111
A78: 72 | B78: 0.01369863014 | C78: 0.9863013699 | E78: 0.01369863014 | F78: 0.9863013699 | H78: 0.01369863014 | I78: 0.9863013699
A79: 73 | B79: 0.01351351351 | C79: 0.9864864865 | E79: 0.01351351351 | F79: 0.9864864865 | H79: 0.01351351351 | I79: 0.9864864865
A80: 74 | B80: 0.01333333333 | C80: 0.9866666667 | E80: 0.01333333333 | F80: 0.9866666667 | H80: 0.01333333333 | I80: 0.9866666667
A81: 75 | B81: 0.01315789474 | C81: =$A81/($A81+$C$4) -> 0.9868421053 | E81: 0.01315789474 | F81: 0.9868421053 | H81: 0.01315789474 | I81: 0.9868421053
A82: 76 | B82: 0.01298701299 | C82: 0.987012987 | E82: 0.01298701299 | F82: 0.987012987 | H82: 0.01298701299 | I82: 0.987012987
A83: 77 | B83: 0.01282051282 | C83: 0.9871794872 | E83: 0.01282051282 | F83: 0.9871794872 | H83: 0.01282051282 | I83: 0.9871794872
A84: 78 | B84: 0.01265822785 | C84: 0.9873417722 | E84: 0.01265822785 | F84: 0.9873417722 | H84: 0.01265822785 | I84: 0.9873417722
A85: 79 | B85: 0.0125 | C85: 0.9875 | E85: 0.0125 | F85: 0.9875 | H85: 0.0125 | I85: 0.9875
A86: 80 | B86: 0.01234567901 | C86: 0.987654321 | E86: 0.01234567901 | F86: 0.987654321 | H86: 0.01234567901 | I86: 0.987654321
A87: 81 | B87: 0.01219512195 | C87: 0.987804878 | E87: 0.01219512195 | F87: 0.987804878 | H87: 0.01219512195 | I87: 0.987804878
A88: 82 | B88: 0.01204819277 | C88: 0.9879518072 | E88: 0.01204819277 | F88: 0.9879518072 | H88: 0.01204819277 | I88: 0.9879518072
A89: 83 | B89: 0.0119047619 | C89: 0.9880952381 | E89: 0.0119047619 | F89: 0.9880952381 | H89: 0.0119047619 | I89: 0.9880952381
A90: 84 | B90: 0.01176470588 | C90: 0.9882352941 | E90: 0.01176470588 | F90: 0.9882352941 | H90: 0.01176470588 | I90: 0.9882352941
A91: 85 | B91: 0.01162790698 | C91: 0.988372093 | E91: 0.01162790698 | F91: 0.988372093 | H91: 0.01162790698 | I91: 0.988372093
A92: 86 | B92: 0.01149425287 | C92: 0.9885057471 | E92: 0.01149425287 | F92: 0.9885057471 | H92: 0.01149425287 | I92: 0.9885057471
A93: 87 | B93: 0.01136363636 | C93: 0.9886363636 | E93: 0.01136363636 | F93: 0.9886363636 | H93: 0.01136363636 | I93: 0.9886363636
A94: 88 | B94: 0.01123595506 | C94: 0.9887640449 | E94: 0.01123595506 | F94: 0.9887640449 | H94: 0.01123595506 | I94: 0.9887640449
A95: 89 | B95: 0.01111111111 | C95: 0.9888888889 | E95: 0.01111111111 | F95: 0.9888888889 | H95: 0.01111111111 | I95: 0.9888888889
A96: =A95+1 -> 90 | B96: 0.01098901099 | C96: 0.989010989 | E96: 0.01098901099 | F96: 0.989010989 | H96: 0.01098901099 | I96: 0.989010989
A97: 91 | B97: 0.01086956522 | C97: 0.9891304348 | E97: 0.01086956522 | F97: 0.9891304348 | H97: 0.01086956522 | I97: 0.9891304348
A98: 92 | B98: 0.01075268817 | C98: 0.9892473118 | E98: 0.01075268817 | F98: 0.9892473118 | H98: 0.01075268817 | I98: 0.9892473118
A99: 93 | B99: 0.01063829787 | C99: 0.9893617021 | E99: 0.01063829787 | F99: 0.9893617021 | H99: 0.01063829787 | I99: 0.9893617021
A100: 94 | B100: 0.01052631579 | C100: 0.9894736842 | E100: 0.01052631579 | F100: 0.9894736842 | H100: 0.01052631579 | I100: 0.9894736842
A101: 95 | B101: 0.01041666667 | C101: 0.9895833333 | E101: 0.01041666667 | F101: 0.9895833333 | H101: 0.01041666667 | I101: 0.9895833333
A102: 96 | B102: 0.01030927835 | C102: 0.9896907216 | E102: 0.01030927835 | F102: 0.9896907216 | H102: 0.01030927835 | I102: 0.9896907216
A103: 97 | B103: 0.01020408163 | C103: 0.9897959184 | E103: 0.01020408163 | F103: 0.9897959184 | H103: 0.01020408163 | I103: 0.9897959184
A104: 98 | B104: 0.0101010101 | C104: 0.9898989899 | E104: 0.0101010101 | F104: 0.9898989899 | H104: 0.0101010101 | I104: 0.9898989899
A105: 99 | B105: 0.01 | C105: 0.99 | E105: 0.01 | F105: 0.99 | H105: 0.01 | I105: 0.99
A106: 100 | B106: 0.009900990099 | C106: 0.9900990099 | E106: 0.009900990099 | F106: 0.9900990099 | H106: 0.009900990099 | I106: 0.9900990099
A107: 101 | B107: 0.009803921569 | C107: 0.9901960784 | E107: 0.009803921569 | F107: 0.9901960784 | H107: 0.009803921569 | I107: 0.9901960784
A108: 102 | B108: 0.009708737864 | C108: 0.9902912621 | E108: 0.009708737864 | F108: 0.9902912621 | H108: 0.009708737864 | I108: 0.9902912621
A109: 103 | B109: 0.009615384615 | C109: 0.9903846154 | E109: 0.009615384615 | F109: 0.9903846154 | H109: 0.009615384615 | I109: 0.9903846154
A110: 104 | B110: 0.009523809524 | C110: 0.9904761905 | E110: 0.009523809524 | F110: 0.9904761905 | H110: 0.009523809524 | I110: 0.9904761905
A111: 105 | B111: 0.009433962264 | C111: 0.9905660377 | E111: 0.009433962264 | F111: 0.9905660377 | H111: 0.009433962264 | I111: 0.9905660377
A112: 106 | B112: 0.009345794393 | C112: 0.9906542056 | E112: 0.009345794393 | F112: 0.9906542056 | H112: 0.009345794393 | I112: 0.9906542056
A113: 107 | B113: 0.009259259259 | C113: 0.9907407407 | E113: 0.009259259259 | F113: 0.9907407407 | H113: 0.009259259259 | I113: 0.9907407407
A114: 108 | B114: 0.009174311927 | C114: 0.9908256881 | E114: 0.009174311927 | F114: 0.9908256881 | H114: 0.009174311927 | I114: 0.9908256881
A115: 109 | B115: 0.009090909091 | C115: 0.9909090909 | E115: 0.009090909091 | F115: 0.9909090909 | H115: 0.009090909091 | I115: 0.9909090909
A116: 110 | B116: 0.009009009009 | C116: 0.990990991 | E116: 0.009009009009 | F116: 0.990990991 | H116: 0.009009009009 | I116: 0.990990991
A117: 111 | B117: 0.008928571429 | C117: 0.9910714286 | E117: 0.008928571429 | F117: 0.9910714286 | H117: 0.008928571429 | I117: 0.9910714286
A118: 112 | B118: 0.008849557522 | C118: 0.9911504425 | E118: 0.008849557522 | F118: 0.9911504425 | H118: 0.008849557522 | I118: 0.9911504425
A119: 113 | B119: 0.008771929825 | C119: 0.9912280702 | E119: 0.008771929825 | F119: 0.9912280702 | H119: 0.008771929825 | I119: 0.9912280702
A120: 114 | B120: 0.008695652174 | C120: 0.9913043478 | E120: 0.008695652174 | F120: 0.9913043478 | H120: 0.008695652174 | I120: 0.9913043478
A121: 115 | B121: 0.008620689655 | C121: 0.9913793103 | E121: 0.008620689655 | F121: 0.9913793103 | H121: 0.008620689655 | I121: 0.9913793103
A122: 116 | B122: 0.008547008547 | C122: 0.9914529915 | E122: 0.008547008547 | F122: 0.9914529915 | H122: 0.008547008547 | I122: 0.9914529915
A123: 117 | B123: 0.008474576271 | C123: 0.9915254237 | E123: 0.008474576271 | F123: 0.9915254237 | H123: 0.008474576271 | I123: 0.9915254237
A124: 118 | B124: 0.008403361345 | C124: 0.9915966387 | E124: 0.008403361345 | F124: 0.9915966387 | H124: 0.008403361345 | I124: 0.9915966387
A125: 119 | B125: 0.008333333333 | C125: 0.9916666667 | E125: 0.008333333333 | F125: 0.9916666667 | H125: 0.008333333333 | I125: 0.9916666667
A126: 120 | B126: 0.00826446281 | C126: 0.9917355372 | E126: 0.00826446281 | F126: 0.9917355372 | H126: 0.00826446281 | I126: 0.9917355372
A127: 121 | B127: 0.008196721311 | C127: 0.9918032787 | E127: 0.008196721311 | F127: 0.9918032787 | H127: 0.008196721311 | I127: 0.9918032787
A128: 122 | B128: 0.008130081301 | C128: 0.9918699187 | E128: 0.008130081301 | F128: 0.9918699187 | H128: 0.008130081301 | I128: 0.9918699187
A129: =A128+1 -> 123 | B129: 0.008064516129 | C129: 0.9919354839 | E129: 0.008064516129 | F129: 0.9919354839 | H129: 0.008064516129 | I129: 0.9919354839
A130: 124 | B130: 0.008 | C130: 0.992 | E130: 0.008 | F130: 0.992 | H130: 0.008 | I130: 0.992
A131: 125 | B131: 0.007936507937 | C131: 0.9920634921 | E131: 0.007936507937 | F131: 0.9920634921 | H131: 0.007936507937 | I131: 0.9920634921
A132: 126 | B132: 0.007874015748 | C132: 0.9921259843 | E132: 0.007874015748 | F132: 0.9921259843 | H132: 0.007874015748 | I132: 0.9921259843
A133: 127 | B133: 0.0078125 | C133: 0.9921875 | E133: 0.0078125 | F133: 0.9921875 | H133: 0.0078125 | I133: 0.9921875
A134: 128 | B134: 0.007751937984 | C134: 0.992248062 | E134: 0.007751937984 | F134: 0.992248062 | H134: 0.007751937984 | I134: 0.992248062
A135: 129 | B135: =1-C135 -> 0.007692307692 | C135: 0.9923076923 | E135: =1-F135 -> 0.007692307692 | F135: =$A135/($A135+$F$4) -> 0.9923076923 | H135: =1-I135 -> 0.007692307692 | I135: =$A135/($A135+$I$4) -> 0.9923076923
A136: 130 | B136: 0.007633587786 | C136: 0.9923664122 | E136: 0.007633587786 | F136: 0.9923664122 | H136: 0.007633587786 | I136: 0.9923664122
A137: 131 | B137: 0.007575757576 | C137: 0.9924242424 | E137: 0.007575757576 | F137: 0.9924242424 | H137: 0.007575757576 | I137: 0.9924242424
A138: 132 | B138: 0.007518796992 | C138: 0.992481203 | E138: 0.007518796992 | F138: 0.992481203 | H138: 0.007518796992 | I138: 0.992481203
A139: 133 | B139: 0.007462686567 | C139: 0.9925373134 | E139: 0.007462686567 | F139: 0.9925373134 | H139: 0.007462686567 | I139: 0.9925373134
A140: 134 | B140: 0.007407407407 | C140: 0.9925925926 | E140: 0.007407407407 | F140: 0.9925925926 | H140: 0.007407407407 | I140: 0.9925925926
A141: 135 | B141: 0.007352941176 | C141: 0.9926470588 | E141: 0.007352941176 | F141: 0.9926470588 | H141: 0.007352941176 | I141: 0.9926470588

Sheet Расчеты2 (hidden)
B1: 1 | C1: 2 | D1: 3 | E1: 4 | F1: 5 | G1: 6 | H1: 7 | I1: 8 | J1: 9 | K1: 10
A2: 1 | B2: =(A2-1)/A2 -> 0
A3: =A2+1 -> 2 | B3: =(A3-1)/A3 -> 0.5 | C3: =((A3-1)/A3)*((A3-2)/(A3-1)) -> 0
A4: =A3+1 -> 3 | B4: 0.6666666667 | C4: =((A4-1)/A4)*((A4-2)/(A4-1)) -> 0.3333333333 | D4: =((A4-1)/A4)*((A4-2)/(A4-1))*((A4-3)/(A4-2)) -> 0
A5: 4 | B5: 0.75 | C5: 0.5 | D5: =((A5-1)/A5)*((A5-2)/(A5-1))*((A5-3)/(A5-2)) -> 0.25 | E5: =((A5-1)/A5)*((A5-2)/(A5-1))*((A5-3)/(A5-2))*((A5-4)/(A5-3)) -> 0
A6: 5 | B6: 0.8 | C6: 0.6 | D6: 0.4 | E6: =((A6-1)/A6)*((A6-2)/(A6-1))*((A6-3)/(A6-2))*((A6-4)/(A6-3)) -> 0.2 | F6: =((A6-1)/A6)*((A6-2)/(A6-1))*((A6-3)/(A6-2))*((A6-4)/(A6-3))*((A6-5)/(A6-4)) -> 0
A7: 6 | B7: 0.8333333333 | C7: 0.6666666667 | D7: 0.5 | E7: 0.3333333333 | F7: =((A7-1)/A7)*((A7-2)/(A7-1))*((A7-3)/(A7-2))*((A7-4)/(A7-3))*((A7-5)/(A7-4)) -> 0.1666666667 | G7: =((A7-1)/A7)*((A7-2)/(A7-1))*((A7-3)/(A7-2))*((A7-4)/(A7-3))*((A7-5)/(A7-4))*((A7-6)/(A7-5)) -> 0
A8: 7 | B8: 0.8571428571 | C8: 0.7142857143 | D8: 0.5714285714 | E8: 0.4285714286 | F8: 0.2857142857 | G8: =((A8-1)/A8)*((A8-2)/(A8-1))*((A8-3)/(A8-2))*((A8-4)/(A8-3))*((A8-5)/(A8-4))*((A8-6)/(A8-5)) -> 0.1428571429 | H8: =((A8-1)/A8)*((A8-2)/(A8-1))*((A8-3)/(A8-2))*((A8-4)/(A8-3))*((A8-5)/(A8-4))*((A8-6)/(A8-5))*((A8-7)/(A8-6)) -> 0
A9: 8 | B9: 0.875 | C9: 0.75 | D9: 0.625 | E9: 0.5 | F9: 0.375 | G9: 0.25 | H9: =((A9-1)/A9)*((A9-2)/(A9-1))*((A9-3)/(A9-2))*((A9-4)/(A9-3))*((A9-5)/(A9-4))*((A9-6)/(A9-5))*((A9-7)/(A9-6)) -> 0.125 | I9: =((A9-1)/A9)*((A9-2)/(A9-1))*((A9-3)/(A9-2))*((A9-4)/(A9-3))*((A9-5)/(A9-4))*((A9-6)/(A9-5))*((A9-7)/(A9-6))*((A9-8)/(A9-7)) -> 0
A10: 9 | B10: 0.8888888889 | C10: 0.7777777778 | D10: 0.6666666667 | E10: 0.5555555556 | F10: 0.4444444444 | G10: 0.3333333333 | H10: 0.2222222222 | I10: =((A10-1)/A10)*((A10-2)/(A10-1))*((A10-3)/(A10-2))*((A10-4)/(A10-3))*((A10-5)/(A10-4))*((A10-6)/(A10-5))*((A10-7)/(A10-6))*((A10-8)/(A10-7)) -> 0.1111111111 | J10: =((A10-1)/A10)*((A10-2)/(A10-1))*((A10-3)/(A10-2))*((A10-4)/(A10-3))*((A10-5)/(A10-4))*((A10-6)/(A10-5))*((A10-7)/(A10-6))*((A10-8)/(A10-7))*((A10-9)/(A10-8)) -> 0 | N10: первый акт | O10: второй акт | P10: гагарин
A11: 10 | B11: 0.9 | C11: 0.8 | D11: 0.7 | E11: 0.6 | F11: 0.5 | G11: 0.4 | H11: 0.3 | I11: 0.2 | J11: =((A11-1)/A11)*((A11-2)/(A11-1))*((A11-3)/(A11-2))*((A11-4)/(A11-3))*((A11-5)/(A11-4))*((A11-6)/(A11-5))*((A11-7)/(A11-6))*((A11-8)/(A11-7))*((A11-9)/(A11-8)) -> 0.1 | K11: =((A11-1)/A11)*((A11-2)/(A11-1))*((A11-3)/(A11-2))*((A11-4)/(A11-3))*((A11-5)/(A11-4))*((A11-6)/(A11-5))*((A11-7)/(A11-6))*((A11-8)/(A11-7))*((A11-9)/(A11-8))*((A11-10)/(A11-9)) -> 0 | N11: три ошибки | O11: две ошибки | P11: 0 | Q11: 1 | R11: 2 | S11: 3 | T11: 4 | U11: 5
A12: 11 | B12: 0.9090909091 | C12: 0.8181818182 | D12: 0.7272727273 | E12: 0.6363636364 | F12: 0.5454545455 | G12: 0.4545454545 | H12: 0.3636363636 | I12: 0.2727272727 | J12: 0.1818181818 | K12: =((A12-1)/A12)*((A12-2)/(A12-1))*((A12-3)/(A12-2))*((A12-4)/(A12-3))*((A12-5)/(A12-4))*((A12-6)/(A12-5))*((A12-7)/(A12-6))*((A12-8)/(A12-7))*((A12-9)/(A12-8))*((A12-10)/(A12-9)) -> 0.09090909091 | N12: =D12^3 -> 0.3846731781 | O12: =E12^4 -> 0.1639915306 | P12: =F12^6 -> 0.02633609568 | Q12: =F12^5 -> 0.04828284208 | R12: =F12^4 -> 0.08851854382 | S12: =F12^3 -> 0.162283997 | T12: =F12^2 -> 0.2975206612 | U12: =F12^1 -> 0.5454545455
A13: 12 | B13: 0.9166666667 | C13: 0.8333333333 | D13: 0.75 | E13: 0.6666666667 | F13: 0.5833333333 | G13: 0.5 | H13: 0.4166666667 | I13: 0.3333333333 | J13: 0.25 | K13: 0.1666666667 | N13: 0.3846731781 | O13: =E13^4 -> 0.1975308642 | P13: =F13^6 -> 0.03940041206 | Q13: =F13^5 -> 0.06754356353 | R13: =F13^4 -> 0.115788966 | S13: =F13^3 -> 0.1984953704 | T13: =F13^2 -> 0.3402777778 | U13: =F13^1 -> 0.5833333333
A14: 13 | B14: 0.9230769231 | C14: 0.8461538462 | D14: 0.7692307692 | E14: 0.6923076923 | F14: 0.6153846154 | G14: 0.5384615385 | H14: 0.4615384615 | I14: 0.3846153846 | J14: 0.3076923077 | K14: 0.2307692308
A15: 14 | B15: 0.9285714286 | C15: 0.8571428571 | D15: 0.7857142857 | E15: 0.7142857143 | F15: 0.6428571429 | G15: 0.5714285714 | H15: 0.5 | I15: 0.4285714286 | J15: 0.3571428571 | K15: 0.2857142857
A16: 15 | B16: 0.9333333333 | C16: 0.8666666667 | D16: 0.8 | E16: 0.7333333333 | F16: 0.6666666667 | G16: 0.6 | H16: 0.5333333333 | I16: 0.4666666667 | J16: 0.4 | K16: 0.3333333333 | N16: =D16^3 -> 0.512 | O16: =E16^4 -> 0.2892049383 | P16: =F16^6 -> 0.0877914952 | Q16: =F16^5 -> 0.1316872428 | R16: =F16^4 -> 0.1975308642 | S16: =F16^3 -> 0.2962962963 | T16: =F16^2 -> 0.4444444444 | U16: =F16^1 -> 0.6666666667
A17: 16 | B17: 0.9375 | C17: 0.875 | D17: 0.8125 | E17: 0.75 | F17: 0.6875 | G17: 0.625 | H17: 0.5625 | I17: 0.5 | J17: 0.4375 | K17: 0.375 | N17: 0.5363769531 | O17: 0.31640625 | P17: =F17^6 -> 0.1055932641 | Q17: =F17^5 -> 0.1535902023 | R17: =F17^4 -> 0.2234039307 | S17: =F17^3 -> 0.3249511719 | T17: =F17^2 -> 0.47265625 | U17: =F17^1 -> 0.6875
A18: 17 | B18: 0.9411764706 | C18: 0.8823529412 | D18: 0.8235294118 | E18: 0.7647058824 | F18: 0.7058823529 | G18: 0.6470588235 | H18: 0.5882352941 | I18: 0.5294117647 | J18: 0.4705882353 | K18: 0.4117647059
A19: 18 | B19: 0.9444444444 | C19: 0.8888888889 | D19: 0.8333333333 | E19: 0.7777777778 | F19: 0.7222222222 | G19: 0.6666666667 | H19: 0.6111111111 | I19: 0.5555555556 | J19: 0.5 | K19: 0.4444444444
A20: 19 | B20: 0.9473684211 | C20: 0.8947368421 | D20: 0.8421052632 | E20: 0.7894736842 | F20: 0.7368421053 | G20: 0.6842105263 | H20: 0.6315789474 | I20: 0.5789473684 | J20: 0.5263157895 | K20: 0.4736842105
A21: 20 | B21: 0.95 | C21: 0.9 | D21: 0.85 | E21: 0.8 | F21: 0.75 | G21: 0.7 | H21: 0.65 | I21: 0.6 | J21: 0.55 | K21: 0.5 | N21: =D21^3 -> 0.614125 | O21: =E21^4 -> 0.4096 | P21: =F21^6 -> 0.1779785156 | Q21: =F21^5 -> 0.2373046875 | R21: =F21^4 -> 0.31640625 | S21: =F21^3 -> 0.421875 | T21: =F21^2 -> 0.5625 | U21: =F21^1 -> 0.75
A22: 21 | B22: 0.9523809524 | C22: 0.9047619048 | D22: 0.8571428571 | E22: 0.8095238095 | F22: 0.7619047619 | G22: 0.7142857143 | H22: 0.6666666667 | I22: 0.619047619 | J22: 0.5714285714 | K22: 0.5238095238 | N22: 0.6297376093 | O22: 0.4294558337 | P22: =F22^6 -> 0.1956158889 | Q22: =F22^5 -> 0.2567458542 | R22: =F22^4 -> 0.3369789337 | S22: =F22^3 -> 0.4422848504 | T22: =F22^2 -> 0.5804988662 | U22: =F22^1 -> 0.7619047619
A23: 22 | B23: 0.9545454545 | C23: 0.9090909091 | D23: 0.8636363636 | E23: 0.8181818182 | F23: 0.7727272727 | G23: 0.7272727273 | H23: 0.6818181818 | I23: 0.6363636364 | J23: 0.5909090909 | K23: 0.5454545455 | N23: 0.6441585274 | O23: 0.4481251281 | P23: =F23^6 -> 0.2128910693 | Q23: =F23^5 -> 0.2755060897 | R23: =F23^4 -> 0.3565372925 | S23: =F23^3 -> 0.4614012021 | T23: =F23^2 -> 0.597107438 | U23: =F23^1 -> 0.7727272727
A24: 23 | B24: 0.9565217391 | C24: 0.9130434783 | D24: 0.8695652174 | E24: 0.8260869565 | F24: 0.7826086957 | G24: 0.7391304348 | H24: 0.6956521739 | I24: 0.652173913 | J24: 0.6086956522 | K24: 0.5652173913
A25: 24 | B25: 0.9583333333 | C25: 0.9166666667 | D25: 0.875 | E25: 0.8333333333 | F25: 0.7916666667 | G25: 0.75 | H25: 0.7083333333 | I25: 0.6666666667 | J25: 0.625 | K25: 0.5833333333
A26: 25 | B26: 0.96 | C26: 0.92 | D26: 0.88 | E26: 0.84 | F26: 0.8 | G26: 0.76 | H26: 0.72 | I26: 0.68 | J26: 0.64 | K26: 0.6
A27: 26 | B27: 0.9615384615 | C27: 0.9230769231 | D27: 0.8846153846 | E27: 0.8461538462 | F27: 0.8076923077 | G27: 0.7692307692 | H27: 0.7307692308 | I27: 0.6923076923 | J27: 0.6538461538 | K27: 0.6153846154
A28: 27 | B28: 0.962962963 | C28: 0.9259259259 | D28: 0.8888888889 | E28: 0.8518518519 | F28: 0.8148148148 | G28: 0.7777777778 | H28: 0.7407407407 | I28: 0.7037037037 | J28: 0.6666666667 | K28: 0.6296296296
A29: 28 | B29: 0.9642857143 | C29: 0.9285714286 | D29: 0.8928571429 | E29: 0.8571428571 | F29: 0.8214285714 | G29: 0.7857142857 | H29: 0.75 | I29: 0.7142857143 | J29: 0.6785714286 | K29: 0.6428571429
A30: 29 | B30: 0.9655172414 | C30: 0.9310344828 | D30: 0.8965517241 | E30: 0.8620689655 | F30: 0.8275862069 | G30: 0.7931034483 | H30: 0.7586206897 | I30: 0.724137931 | J30: 0.6896551724 | K30: 0.6551724138
A31: 30 | B31: 0.9666666667 | C31: 0.9333333333 | D31: 0.9 | E31: 0.8666666667 | F31: 0.8333333333 | G31: 0.8 | H31: 0.7666666667 | I31: 0.7333333333 | J31: 0.7 | K31: 0.6666666667

Sheet Расчеты3 (hidden)
A1: 0 | B1: -1 | C1: 0 | D1: 4 | J1: ПРКС | K1: КРКА | L1: СУН | M1: ТС | N1: ЭСЭ | O1: МИЖ
A2: 0 | B2: -1 | C2: -1 | D2: 4 | I2: Макаровы | J2: 1 | K2: 2 | L2: 3 | M2: 4
A3: 0 | B3: -1 | C3: -1 | D3: 4 | I3: Васильевы | J3: 2 | K3: 3 | N3: 4 | O3: 5
A4: 0 | B4: 1 | C4: 0 | D4: 5 | I4: Кузнецовы | L4: 3 | M4: 4 | N4: 5 | O4: 6
A5: 0 | B5: 1 | C5: 1 | D5: 5 | I5: Ивановы | J5: 4 | K5: 5 | L5: 6 | M5: 1 | N5: 2
A6: 0 | B6: 1 | C6: 1 | D6: 5 | I6: Черновы | J6: 5 | K6: 6 | L6: 1 | M6: 2 | O6: 3
I7: Сидоровы | J7: 6 | K7: 1 | L7: 2 | N7: 3 | O7: 4
A10: Макаровы | B10: ПРКС | C10: Лыжники | D10: =A10&B10 -> МакаровыПРКС | E10: =A10&C10 -> МакаровыЛыжники | F10: =B10&C10 -> ПРКСЛыжники
A11: Макаровы | B11: КРКА | C11: Филателисты | D11: =A11&B11 -> МакаровыКРКА | E11: =A11&C11 -> МакаровыФилателисты | F11: =B11&C11 -> КРКАФилателисты
A12: Макаровы | B12: СУН | C12: Радиолюбители | D12: МакаровыСУН | E12: МакаровыРадиолюбители | F12: СУНРадиолюбители
A13: Макаровы | B13: ТС | C13: Самодеятельная песня | D13: МакаровыТС | E13: МакаровыСамодеятельная песня | F13: ТССамодеятельная песня
A14: Васильевы | B14: ЭСЭ | C14: Самодеятельная песня | D14: ВасильевыЭСЭ | E14: ВасильевыСамодеятельная песня | F14: ЭСЭСамодеятельная песня
A15: Васильевы | B15: МИЖ | C15: Рыболовы | D15: ВасильевыМИЖ | E15: ВасильевыРыболовы | F15: МИЖРыболовы
A16: Васильевы | B16: ПРКС | C16: Филателисты | D16: ВасильевыПРКС | E16: ВасильевыФилателисты | F16: ПРКСФилателисты
A17: Васильевы | B17: КРКА | C17: Радиолюбители | D17: ВасильевыКРКА | E17: ВасильевыРадиолюбители | F17: КРКАРадиолюбители
A18: Кузнецовы | B18: СУН | C18: Радиолюбители | D18: КузнецовыСУН | E18: КузнецовыРадиолюбители | F18: СУНРадиолюбители
A19: Кузнецовы | B19: ТС | C19: Самодеятельная песня | D19: КузнецовыТС | E19: КузнецовыСамодеятельная песня | F19: ТССамодеятельная песня
A20: Кузнецовы | B20: ЭСЭ | C20: Рыболовы | D20: КузнецовыЭСЭ | E20: КузнецовыРыболовы | F20: ЭСЭРыболовы
A21: Кузнецовы | B21: МИЖ | C21: Садоводы | D21: КузнецовыМИЖ | E21: КузнецовыСадоводы | F21: МИЖСадоводы
A22: Ивановы | B22: ПРКС | C22: Самодеятельная песня | D22: ИвановыПРКС | E22: ИвановыСамодеятельная песня | F22: ПРКССамодеятельная песня
A23: Ивановы | B23: КРКА | C23: Рыболовы | D23: ИвановыКРКА | E23: ИвановыРыболовы | F23: КРКАРыболовы
A24: Ивановы | B24: СУН | C24: Садоводы | D24: ИвановыСУН | E24: ИвановыСадоводы | F24: СУНСадоводы
A25: Ивановы | B25: ТС | C25: Лыжники | D25: ИвановыТС | E25: ИвановыЛыжники | F25: ТСЛыжники
A26: Ивановы | B26: ЭСЭ | C26: Филателисты | D26: ИвановыЭСЭ | E26: ИвановыФилателисты | F26: ЭСЭФилателисты
A27: Черновы | B27: МИЖ | C27: Радиолюбители | D27: ЧерновыМИЖ | E27: ЧерновыРадиолюбители | F27: МИЖРадиолюбители
A28: Черновы | B28: ПРКС | C28: Рыболовы | D28: ЧерновыПРКС | E28: ЧерновыРыболовы | F28: ПРКСРыболовы
A29: Черновы | B29: КРКА | C29: Садоводы | D29: ЧерновыКРКА | E29: ЧерновыСадоводы | F29: КРКАСадоводы
A30: Черновы | B30: СУН | C30: Лыжники | D30: ЧерновыСУН | E30: ЧерновыЛыжники | F30: СУНЛыжники
A31: Черновы | B31: ТС | C31: Филателисты | D31: ЧерновыТС | E31: ЧерновыФилателисты | F31: ТСФилателисты
A32: Сидоровы | B32: ЭСЭ | C32: Радиолюбители | D32: СидоровыЭСЭ | E32: СидоровыРадиолюбители | F32: ЭСЭРадиолюбители
A33: Сидоровы | B33: МИЖ | C33: Самодеятельная песня | D33: СидоровыМИЖ | E33: СидоровыСамодеятельная песня | F33: МИЖСамодеятельная песня
A34: Сидоровы | B34: ПРКС | C34: Садоводы | D34: СидоровыПРКС | E34: СидоровыСадоводы | F34: ПРКССадоводы
A35: Сидоровы | B35: КРКА | C35: Лыжники | D35: СидоровыКРКА | E35: СидоровыЛыжники | F35: КРКАЛыжники
A36: Сидоровы | B36: СУН | C36: Филателисты | D36: СидоровыСУН | E36: СидоровыФилателисты | F36: СУНФилателисты

Sheet Справочники (hidden)
A1: Семьи
A2: № | B2: Фамилия | C2: Описание | D2: Цель
A3: 1 | B3: Макаровы | C3: Научная советская аристократия. Белая кость, половина семьи репрессированы. | D3: Добиться реабилитации репрессированного родственника в связи с важной ролью его научной работы для текущего этапа космической программы.
A4: 2 | B4: Васильевы | C4: Династия военных, во всём должна быть дисциплина и порядок. | D4: Сохранить честь мундира и доказать всем, что вы образцовая советская семья. Прямо сейчас поведение одного из ваших родственников или ложные обвинения угрожают репутации вашей династии.
A5: 3 | B5: Кузнецовы | C5: Честные трудяги инженеры, с рабочими корнями, не обязательно хватать звезды с неба, но важно много трудиться. | D5: Добиться улучшения условий труда и жизни работников научного городка. Сейчас к нему приковано внимание всего Союза и если постараться, то под этим предлогом можно получить всё необходимое. Подумайте, что именно вам хотелось бы улучшить и почему это важно для семьи. Например, вы хотите, чтобы молодым семьям в научном городке выделяли отдельное жилье. Или часть оборудования устарела, работать с ним тяжело, а порой и опасно, и вы хотите его заменить в приоритетном порядке. Скорее всего, вашим потомкам здесь жить. Действуйте.
A6: 4 | B6: Ивановы | C6: Выходцы из низов, бывшие колхозники, жили всегда бедно, из далекой провинции. | D6: Помочь родному сельсовету стать пилотной площадкой для механизации (строительстве опытного агрокомплекса, лаборатории или завода). Соревнование проводится только в этом году. Завод / лаборатория будут построены ударными темпами, чтобы обеспечить всё необходимое для уверенной победы СССР в космической гонке. Регион, который выберут власти, получит финансирование и поддержку на ближайшие десятилетия. Для вашего села это будет означать процветание и, даст Бог, постепенное превращение в городок.
A7: 5 | B7: Черновы | C7: Фанатичные коммунисты и идеалисты. | D7: Сохранить для потомков память о самоотверженном труде советского народа, о вкладе каждого в общее дело, правдиво и честно рассказать об успехах и провалах, сохранив народный, демократический дух коммунистической партии, пострадавший в последние десятилетия. Вы знаете неприятную правду, которую предательские элементы в партии пытаются утаить. Если протянуть с этим, чинуши заметут следы, внесут в историю себя и другие буржуазные реакционные элементы. А ведь партия Ленина - партия правды.
A8: 6 | B8: Сидоровы | C8: Партийная семейка, которая прорвалась на теплые места в промышленности. | D8: Получить важную должность в связи с заслугами в освоении космоса (стать секретарём районного партийного комитета, начальником ракетостроительного завода, ректором реактивного научно-исследовательского института). Сейчас внимание всего Союза приковано к вашей работе и нужно приложить усилия, чтобы заслуги вашей семьи были замечены, документально зафиксированы и представлены в нужном свете. Это позволит Сидоровым укрепиться в партийной иерархии и занять одну из освободившихся ключевых должностей, которая будет заполнена в ближайшие месяцы.
A10: Отделы
A11: № | B11: Название | C11: Короткое | D11: Функции
A12: 1 | B12: Отдел проектирования и разработки ракетных систем | C12: ПРКС | D12: Занимается созданием и проектированием ракетных систем, включая ракеты-носители и их ключевые элементы. Разрабатывает технические чертежи и документацию, проводит инженерные расчеты и моделирование для обеспечения надежности и безопасности запусков. Отвечает за сборку ракетных систем, обеспечивая их готовность к испытаниям и эксплуатации.
A13: 2 | B13: Отдел конструирования и разработки космических аппаратов | C13: КРКА | D13: Специализируется на разработке и проектировании космических аппаратов и их составных частей. Создает модели и чертежи, проводит расчеты и симуляции для обеспечения их функциональности и безопасности в условиях космоса. Участвует в сборке космических аппаратов, гарантируя их соответствие проектным требованиям и готовность к полетам.
A14: 3 | B14: Отдел систем управления и навигации | C14: СУН | D14: Разработка систем управления полетом, навигации и ориентации космических аппаратов. Обеспечение точности траектории и безопасного возвращения на Землю.
A15: 4 | B15: Отдел телеметрии и связи | C15: ТС | D15: Создание и поддержка систем связи между космическим аппаратом и наземными станциями. Обеспечение передачи данных и телеметрии в реальном времени для мониторинга состояния аппарата и космонавта.
A16: 5 | B16: Отдел энергетических систем и электроснабжения | C16: ЭСЭ | D16: Разработка и обслуживание энергетических систем космического аппарата, включая солнечные батареи, аккумуляторы и системы распределения энергии. Обеспечение надежного электроснабжения всех бортовых систем и оборудования.
A17: 6 | B17: Отдел медицинских исследований и жизнеобеспечения | C17: МИЖ | D17: Исследование влияния космических полетов на живые организмы и человека в частности, разработка систем жизнеобеспечения и медицинской поддержки на борту космического корабля.
A19: Клубы
A20: № | B20: Увлечение
A21: 1 | B21: Лыжники
A22: 2 | B22: Филателисты
A23: 3 | B23: Радиолюбители
A24: 4 | B24: Самодеятельная песня
A25: 5 | B25: Рыболовы
A26: 6 | B26: Садоводы
